Cogmind - Beta 9.6 @@@ ROGUE MODE // 2020.07.27 @ 05:06:25 Player: Phillammon Result: Destroyed by G-47 Trooper with Particle Gun Performance ------------- Evolutions (3) 1500 Regions Visited (4) 800 Robots Destroyed (8) 40 Value Destroyed (176) 176 Prototype IDs (2) 40 Alien Tech Used (0) 0 Bonus (200) 200 TOTAL SCORE: 2756 Bonus ------- Pacifist 200 Cogmind --------- Core Integrity 0/700 Matter 289/300 Energy 80/100 System Corruption 0% Temperature Cool (54) Movement Treading (160) Location -7/Factory Parts ------- > --- POWER (2) -------- (None) > --- PROPULSION (5) --- Light Treads > --- UTILITY (4) ------ (None) > --- WEAPON (2) ------- (None) > --- INVENTORY (4) ---- Improved Deuterium Engine Hacking Suite Peak State ------------ > --- POWER ------------ Improved Deuterium Engine > --- PROPULSION ------- Improved Carbon-fiber Leg Improved Carbon-fiber Leg Improved Carbon-fiber Leg Improved Carbon-fiber Leg > --- UTILITY ---------- Targeting Computer Targeting Computer Propulsion Shielding > --- WEAPON ----------- (None) > --- INVENTORY -------- Targeting Computer Targeting Computer Hacking Suite Lightning Gun [Rating: 23] Favorites ----------- Power Light Ion Engine Engine Light Ion Engine Propulsion Aluminum Leg Treads Light Treads Leg Aluminum Leg Flight Unit Flight Unit Utility Propulsion Shielding Storage Small Storage Unit Processor Targeting Computer Protection Propulsion Shielding Weapon Small Laser Energy Gun Small Laser Energy Cannon Advanced Beam Cannon Ballistic Gun Light Assault Rifle Build | -11 -10 -9 -8 -7 ------- Run | Scr Mat Mat Mat Fac Slots Evolved 6 | . . 2 2 2 Power 1 | . . 1 . . Propulsion 3 | . . 1 2 . Utility 2 | . . . . 2 Weapon . | . . . . . Parts Attached 27 | . . 4 7 16 Power 4 | . . 1 1 2 Engine 4 | . . 1 1 2 Core . | . . . . . Reactor . | . . . . . Propulsion 9 | . . 1 3 5 Treads 2 | . . 1 . 1 Leg 4 | . . . . 4 Wheel . | . . . . . Hover . | . . . . . Flight 3 | . . . 3 . Utility 6 | . . 1 1 4 Device . | . . . . . Storage . | . . . . . Processor 4 | . . . . 4 Hackware . | . . . . . Protection 2 | . . 1 1 . Artifact . | . . . . . Weapon 8 | . . 1 2 5 Energy Gun 4 | . . 1 1 2 Energy Cannon 1 | . . . 1 . Ballistic Gun 3 | . . . . 3 Ballistic Cannon . | . . . . . Launcher . | . . . . . Special Weapon . | . . . . . Impact Weapon . | . . . . . Slashing Weapon . | . . . . . Piercing Weapon . | . . . . . Special Melee Weapon . | . . . . . Unidentified Prototypes 2 | . . . 2 . Parts Lost 26 | . 1 1 2 22 Power 3 | . . . . 3 Propulsion 8 | . . . 1 7 Utility 6 | . . . . 6 Weapon 9 | . 1 1 1 6 Highest Loss Streak 15 | . 1 1 3 15 Average Slot Usage (%) 73 | . 83 93 72 55 Engine 13 | . 14 22 18 5 Treads 4 | . . 11 9 . Leg 15 | . 28 22 6 7 Flight 6 | . . . 12 11 Storage 6 | . 14 11 4 . Processor 4 | . . . . 10 Protection 8 | . . 7 13 12 Energy Gun 8 | . 14 18 2 2 Energy Cannon 1 | . . . 6 1 Ballistic Gun 3 | . 12 . . 2 Naked Turns 2 | . . . . 2 Heaviest Build 17 | 11 11 16 17 12 Greatest Support 72 | 20 20 20 20 72 Greatest Overweight (x) 4 | . . . 4 2 Average Overweight (x) . | . . . . . Largest Inventory Capacity 6 | . 6 6 6 4 Average Capacity 5 | . 6 6 5 4 Most Carried 6 | . 6 6 6 4 Average Carried 4 | . 6 5 3 3 Final Capacity 6 | 6 6 6 4 4 Final Carried 6 | 6 6 6 1 2 Class Distribution -------------------- 70% | Mutant 29% | Scavenger-Mutant Dominant Class ---------------- Mutant | -10/Materials Mutant | -9/Materials Scavenger-Mutant | -8/Materials Mutant | -7/Factory Resources | -11 -10 -9 -8 -7 ----------- Run | Scr Mat Mat Mat Fac Matter Collected 394 | 182 . 56 50 106 Remotely . | . . . . . Salvage Created 331 | . . 104 50 177 Parts 18 | . . 6 5 7 Haulers Intercepted 2 | . . 1 . 1 Recyclers Shooed . | . . . . . Parts Field Recycled . | . . . . . Retrieved Matter . | . . . . . Parts Self-Destructed . | . . . . . Prevented . | . . . . . Kills | -11 -10 -9 -8 -7 ------- Run | Scr Mat Mat Mat Fac Combat Hostiles Destroyed 6 | . . 1 3 2 Guns 4 | . . 1 2 1 Cannons 2 | . . . 1 1 Classes Destroyed 4 | . . 2 1 1 Hauler 2 | . . 1 . 1 Swarmer 3 | . . . 3 . Grunt 1 | . . 1 . . Sentry 2 | . . . . 2 Best Kill Streak 3 | . . 2 3 1 Combat Bots Only 3 | . . 1 3 1 Max Kills in Single Turn 1 | . . 1 1 1 Gunslinging . | . . . . . Exploded . | . . . . . Melee . | . . . . . Uniques/NPCs Destroyed . | . . . . . Combat | -11 -10 -9 -8 -7 -------- Run | Scr Mat Mat Mat Fac Damage Taken 2833 | . 284 200 145 2204 Core 772 | . 54 10 . 708 Absorbed by Shields . | . . . . . Core Remaining (%) 93 | 100 78 97 100 . Volleys Fired 34 | . 5 5 3 21 Largest 2 | . 2 2 1 2 Hottest 88 | . 60 80 68 88 Shots Fired 46 | . 8 9 3 26 Gun 39 | . 8 9 2 20 Cannon 7 | . . . 1 6 Launcher . | . . . . . Special . | . . . . . Kinetic 21 | . 3 . . 18 Thermal 17 | . 5 5 1 6 Explosive . | . . . . . Electromagnetic 8 | . . 4 2 2 Robot Hit Streak 12 | . 7 9 2 12 Robot Miss Streak 3 | . 1 1 1 3 Penetration Max . | . . . . . Secondary Targets . | . . . . . Shots Hit Robots 34 | . 7 6 2 19 Core Hits 22 | . 2 4 3 13 Critical Hits . | . . . . . Critical Kills . | . . . . . Critical Parts Destroyed . | . . . . . Melee Attacks . | . . . . . Impact . | . . . . . Slashing . | . . . . . Piercing . | . . . . . Sneak Attacks . | . . . . . Combat Hostiles . | . . . . . Follow-up Attacks . | . . . . . Damage Inflicted 602 | . 57 82 43 420 Guns 473 | . 57 82 23 311 Cannons 123 | . . . 20 103 Explosions . | . . . . . Melee . | . . . . . Ramming 6 | . . . . 6 Kinetic 286 | . 13 . . 273 Thermal 224 | . 44 57 20 103 Explosive . | . . . . . Electromagnetic 86 | . . 25 23 38 Impact . | . . . . . Slashing . | . . . . . Piercing . | . . . . . Highest Corruption . | . . . . . Average Corruption . | . . . . . Corruption Purged . | . . . . . Overload Shots . | . . . . . Overflow Damage . | . . . . . Projectiles . | . . . . . Explosions . | . . . . . Melee . | . . . . . Knockbacks . | . . . . . Impact . | . . . . . Kinetic . | . . . . . Secondary . | . . . . . Self-Inflicted Damage 3 | . . . . 3 Shots . | . . . . . Rammed 1 | . . . . 1 Targets Rammed 1 | . . . . 1 Kicked . | . . . . . Crushed . | . . . . . Highest Temperature 200 | . 71 84 26 200 Average Temperature 70 | . 45 38 15 92 Received Heat Transfer 1344 | . 165 90 27 1062 Siege Activations . | . . . . . Robots Corrupted . | . . . . . Combat Hostiles . | . . . . . Parts Fried . | . . . . . Impact Corruptions . | . . . . . Robots Melted . | . . . . . Combat Hostiles . | . . . . . Parts Melted 1 | . . 1 . . Heat Transferred 447 | . 100 125 37 185 Parts Sabotaged . | . . . . . Parts Stolen . | . . . . . Parts Stripped . | . . . . . Power Chain Reactions . | . . . . . Missiles Intercepted . | . . . . . Alert | -11 -10 -9 -8 -7 ------- Run | Scr Mat Mat Mat Fac Peak Influence 139 | . 30 80 139 125 Average Influence 57 | . 24 43 77 76 Maximum Alert Level . | . . . . . Low Security (%) 100 | . 100 100 100 100 Level 1 . | . . . . . Level 2 . | . . . . . Level 3 . | . . . . . Level 4 . | . . . . . Level 5 . | . . . . . High Security . | . . . . . Max Security . | . . . . . Squads Dispatched 5 | . 1 . 1 3 Investigation 1 | . . . . 1 Extermination 1 | . . . . 1 Reinforcement 3 | . 1 . 1 1 Assault . | . . . . . Garrison . | . . . . . Intercept . | . . . . . Construction Impeded . | . . . . . Haulers Reinforced . | . . . . . Stealth | -11 -10 -9 -8 -7 --------- Run | Scr Mat Mat Mat Fac Distress Signals 1 | . . . . 1 Communications Jammed . | . . . . . Distress Signals . | . . . . . Times Spotted 44 | . 4 9 10 21 Peak Tracking Total 8 | . 2 6 7 8 Tactical Retreats 8 | . 1 1 . 6 Traps | -11 -10 -9 -8 -7 ------- Run | Scr Mat Mat Mat Fac Traps Triggered 1 | . . . . 1 Indirectly . | . . . . . Trap Hack Attempts . | . . . . . Triggered . | . . . . . Disarmed . | . . . . . Reprogrammed . | . . . . . Reused . | . . . . . Traps Extracted . | . . . . . Installed . | . . . . . Triggered . | . . . . . Machines | -11 -10 -9 -8 -7 ---------- Run | Scr Mat Mat Mat Fac Machines Disabled . | . . . . . Max in Single Turn . | . . . . . Machines Sabotaged . | . . . . . Garrisons Compromised . | . . . . . Overloaded Fab Kills . | . . . . . Fab Network Shutdowns . | . . . . . Hacking | -11 -10 -9 -8 -7 --------- Run | Scr Mat Mat Mat Fac Machines Accessed . | . . . . . Terminals . | . . . . . Fabricators . | . . . . . Repair Stations . | . . . . . Recycling Units . | . . . . . Scanalyzers . | . . . . . Garrison Access . | . . . . . Total Hacks . | . . . . . Successful . | . . . . . Failed . | . . . . . Catastrophic . | . . . . . Database Lockouts . | . . . . . Manual . | . . . . . Terminals . | . . . . . Fabricators . | . . . . . Repair Stations . | . . . . . Recycling Units . | . . . . . Scanalyzers . | . . . . . Garrison Access . | . . . . . Terminal Hacks . | . . . . . Fabricator Hacks . | . . . . . Repair Station Hacks . | . . . . . Recycling Unit Hacks . | . . . . . Scanalyzer . | . . . . . Garrison Access Hacks . | . . . . . Unauthorized Hacks . | . . . . . Terminals . | . . . . . Fabricators . | . . . . . Repair Stations . | . . . . . Recycling Units . | . . . . . Scanalyzers . | . . . . . Garrison Access . | . . . . . Data Cores Recovered . | . . . . . Used . | . . . . . Hacking Detections . | . . . . . Full Trace Events . | . . . . . Feedback Events . | . . . . . Feedback Blocked . | . . . . . Robot Schematics Acquired . | . . . . . Robots Built . | . . . . . Matter . | . . . . . Time . | . . . . . Total Robot Build Rating . | . . . . . Part Schematics Acquired . | . . . . . Parts Built . | . . . . . Matter . | . . . . . Time . | . . . . . Total Part Build Rating . | . . . . . Parts Repaired . | . . . . . Time . | . . . . . Parts Recycled . | . . . . . Recycled Matter . | . . . . . Retrieved Matter . | . . . . . Retrieved Components . | . . . . . Parts Scanalyzed . | . . . . . Part Schematics Acquired . | . . . . . Parts Damaged . | . . . . . Bothacking | -11 -10 -9 -8 -7 ------------ Run | Scr Mat Mat Mat Fac Used RIF Installer . | . . . . . Robots Hacked . | . . . . . Non-combat . | . . . . . Combat . | . . . . . Robot Hacks Applied . | . . . . . Relay Couplers Released . | . . . . . Robots Rewired . | . . . . . Allies Hacked . | . . . . . Hacks Repelled . | . . . . . Allies | -11 -10 -9 -8 -7 -------- Run | Scr Mat Mat Mat Fac Total Allies . | . . . . . Largest Group . | . . . . . Highest-Rated Group . | . . . . . Highest-Rated Ally . | . . . . . Total Orders . | . . . . . Ally Attacks . | . . . . . Total Damage . | . . . . . Kills . | . . . . . Allies Corrupted . | . . . . . Allies Melted . | . . . . . Intel | -11 -10 -9 -8 -7 ------- Run | Scr Mat Mat Mat Fac Robot Analysis Total . | . . . . . Derelict Logs Recovered . | . . . . . Drone Launches . | . . . . . Drone Recoveries . | . . . . . Exploration | -11 -10 -9 -8 -7 ------------- Run | Scr Mat Mat Mat Fac Turns Passed 701 | . 154 170 105 272 Spaces Moved 656 | 1 119 118 92 326 Core 3 | . . . . 3 Treads . | . . . . . Legs 312 | 1 119 118 29 45 Wheels . | . . . . . Hover . | . . . . . Flight 341 | . . . 63 278 Fastest Speed 34 | 120 120 120 54 34 Average Speed 85 | 120 120 120 91 58 Slowest Speed 390 | 120 120 120 390 200 Overloaded Moves . | . . . . . Propulsion Burnouts . | . . . . . Robots Hopped 2 | . . . . 2 Cave-ins Triggered . | . . . . . Exploration Rate (%) 16 | 2 34 19 15 13 Regions Visited 4 Branch Regions . Pre-discovered Areas . | . . . . . Known Exits Taken . | . . . . . Unknown Exits Taken 4 | 1 1 1 1 . Scrap Searched . | . . . . . Spaces Dug . | . . . . . Terrain Destroyed . | . . . . . Melee . | . . . . . Projectile . | . . . . . AOE . | . . . . . Actions | -11 -10 -9 -8 -7 --------- Run | Scr Mat Mat Mat Fac Total 748 | . 123 137 111 377 Wait 12 | . . 7 . 5 Move 649 | . 118 117 91 323 Hop 1 | . . . . 1 Pick Up 16 | . . 4 4 8 Fast Attach 10 | . . . 1 9 Attach 15 | . . 4 4 7 Detach . | . . . . . Swap 2 | . . . 2 . Drop 8 | . . . 6 2 Fire 34 | . 5 5 3 21 Melee . | . . . . . Ram 1 | . . . . 1 Kick . | . . . . . Crush . | . . . . . Escape Stasis . | . . . . . Rewire . | . . . . . Trap . | . . . . . Miscellaneous . | . . . . . Route ------- -11/Scrapyard -10/Materials -9/Materials -8/Materials -7/Factory History --------- Turn | Location | Event 1 | -11/Scrapyard | Discovered new exit (range 0) 1 | -11/Scrapyard | Entered Materials 127 | -10/Materials | Discovered new exit (range 13) 155 | -10/Materials | Entered another Materials area 155 | -9/Materials | Evolved 2 slots: Power x1, Propulsion x1 303 | -9/Materials | Build established: Mutant 320 | -9/Materials | Discovered new exit (range 5) 325 | -9/Materials | Entered another Materials area 325 | -8/Materials | Evolved 2 slots: Propulsion x2 386 | -8/Materials | Lost 3 parts (1n2w) 429 | -8/Materials | Discovered new exit (range 3) 430 | -8/Materials | Entered Factory 430 | -7/Factory | Evolved 2 slots: Utility x2 591 | -7/Factory | Lost 5 parts (2p2n1w) 686 | -7/Factory | Core integrity fell below 50% 695 | -7/Factory | Core integrity fell below 20% 702 | -7/Factory | Destroyed by G-47 Trooper with Particle Gun Last Messages --------------- 00658_ Acquired Imp. Deuterium Engine. 00667_ Propulsion Shielding destroyed. 00672_ Imp. Carbon-fiber Leg destroyed. 00672_ Acquired Hpw. Shotgun. 00679_ Imp. Carbon-fiber Leg destroyed. 00680_ ALERT: Rogue bot located, Programmers report to Factory Zone 6F. 00680_ Imp. Carbon-fiber Leg destroyed. 00682_ Targeting Computer destroyed. 00685_ Hpw. Shotgun destroyed. 00686_ Targeting Computer destroyed. 00687_ Y-54 Guardian destroyed. 00690_ Lightning Gun destroyed. 00691_ Dropped Imp. Deuterium Engine. 00691_ Slammed into G-47 Trooper. 00692_ Acquired Flak Gun. 00698_ Flak Gun destroyed. 00698_ Acquired 52 matter. 00699_ Acquired Imp. Deuterium Engine. 00700_ Targeting Computer destroyed. 00701_ Acquired Lgt. Treads. Map ----- +----------------------------------------------------+ | ?????????????????????????????????????????????????? | | ?????????????????????????????????????????????????? | | ?????????????????????????????????????????????????? | | ?????????????????????????????????????????????????? | | ?????????????????????????????????????????????????? | | ?????????????????????????????????????????????????? | | ?????????????????????????????????????????????????? | | ?????????????????????????? #????????????????????? | | ?????????????????????????? ??????????????????? | | ?????????????????????????? ????????????????? | | ?????????????????????????? ????????????????? | | ?????????????????????????# #????????????????? | | ?????????????????????????# #????????????????? | | ?????????????????????????# #????????????????? | | ?????????????????????????# #????????????????? | | ?????????????????????????# #????????????????? | | ????????????? ???????????# #????????????????? | | ??????????? ????????# #????????????????? | | ??????????# ???????# #????????????????? | | ??????????# ######## #########????????? | | ??????????# ???????? | | ????????????? ???????? | | ?????????????????""""" ???????? | | ????????????????"""""" ###+#######??????????????? | | ????????????????"""""" # g #???????????????? | | ???????????? ???"""""" #@! gg #???????????????? | | ??????????# ?"""""" # * gg #???????????????? | | ??????????# """""" # """" #???????????????? | | ??????????# ![ """""" # """" #???????????????? | | ??????????# !! """""" # """" #???????????????? | | ?????????# [ """""" # """" #???????????????? | | ?????????# # #???????????????? | | ?????????# # #???????????????? | | ########## ##########???????????????? | | #????????????????????????? | | #????????????????????????? | | #????????????????????????? | | ^ #????????????????????????? | | #????????????????????????? | | #????????????????????????? | | = #????????????????????????? | | ###### #????????????????????????? | | ###### #????????????????????????? | | # # +????????????????????????? | | # # #????????????????????????? | | # # #### #????????????????????????? | | # # #??# #????????????????????????? | | # # #??# #????????????????????????? | | # # #### #######+#????????????????? | | # # # #????????????????? | +----------------------------------------------------+ Best States ------------- Heat Dissipation 34 Energy Generation 16 Energy Capacity 290 Matter Stores 300 Matter Capacity 300 Sight Range 16 Terrain Scan Density 10 Propulsion Shielding 33 Evasion (%) 63 Targeting Accuracy 10 Recoil Reduction 1 Item Schematics ----------------- None Robot Schematics ------------------ None Fabricated ------------ Nothing Alien Tech Used ----------------- None Achievements -------------- None Challenges ------------ None Game ------ Seed AutogunHelicalShifter Manual? 0 Play Time 00:11:02 Cumulative 17.6 hours Start 2020.07.27 @ 04:56:24 End 2020.07.27 @ 05:06:25 Sessions 1 Manual Loads 0 Difficulty Rogue Special Mode None Game No. 54 Rogue 54 Adventurer 0 Explorer 0 Win Type - Total 0 Types 0/0/0/0/0/0/0 Lore% 22 Gallery% 25 Achievement% 24 Wizard Run 0 Options --------- ASCII 0 Keyboard 0 Movement Mouse Keybinds 0 Fullscreen 1 Font 18/SmallcapsGlow Map View 76x50 Tactical HUD 1 Map Filters NONE Filters NONE Steam 0 RUN: 9f5dc4f2-82ad-4db6-99c9-37ee448f0a50